bitfinex/quotes_ETHUSD_20241030
["timestamp","ask_amount","ask_price","bid_price","bid_amount"]
[1730254755407,3.79469,2635.3,2634.8,3.79534]
[1730254755722,3.7948,2635.2,2634.7,4.58468]
[1730254755895,3.79463,2635.3,2634.8,3.79527]
[1730254756336,0.7598,2635.5,2634.8,7.13557734]
[1730254756494,7.58862,2635.6,2635.0,7.13526734]
[1730254756701,3.7943,2635.6,2635.1,0.7523]
[1730254756896,0.01,2636.0,2635.3,3.7945]
[1730254756897,4.60266,2636.0,2635.3,3.7945]
[1730254757158,3.79387,2635.9,2635.3,3.79463]
[1730254757331,3.79387,2635.9,2635.4,3.79439]
[1730254757332,3.79386,2635.9,2635.4,3.79439]
[1730254757919,0.8089,2636.0,2635.5,3.79422]
[1730254758120,0.8089,2636.0,2635.5,5.64700071]
[1730254758328,0.06641863,2635.9,2635.5,5.64700071]
[1730254758632,3.86020863,2635.9,2635.5,1.85278071]
[1730254758836,3.86020863,2635.9,2635.5,0.7523]
[1730254760295,3.86020863,2635.9,2635.2,7.13499734]
[1730254760296,3.79421,2635.6,2635.2,0.7523]
[1730254760501,3.86092076,2635.5,2635.1,0.78875673]
[1730254761116,0.06655076,2635.5,2635.1,4.58365673]
[1730254761319,0.06655076,2635.5,2635.2,0.53359567]
[1730254761741,7.58805,2635.8,2635.2,4.32827567]
[1730254761947,0.06655076,2635.7,2635.2,4.32827567]
[1730254762247,0.06655076,2635.7,2635.2,0.53359567]
[1730254762248,3.86063076,2635.7,2635.2,0.53359567]
[1730254763149,0.06655076,2635.7,2635.2,4.32832567]
[1730254763806,3.86062076,2635.7,2635.2,4.32832567]
[1730254765029,0.06655076,2635.7,2635.3,5.01976997]
[1730254765544,3.79401,2635.8,2635.3,5.01976997]
[1730254765745,0.06668549,2635.6,2635.4,3.79447]
[1730254765927,3.79401,2635.8,2635.3,5.01984997]
[1730254766140,0.06668549,2635.7,2635.3,5.01984997]
[1730254766335,0.06668549,2635.7,2635.4,3.79444]
[1730254766521,0.06668549,2635.6,2635.5,0.7523]
[1730254767056,3.79355,2636.1,2635.6,3.7942]
[1730254767219,4.6022,2636.3,2635.7,3.79405]
[1730254767220,3.79334,2636.2,2635.7,3.79405]
[1730254768052,4.6022,2636.3,2635.5,4.09260734]
[1730254768345,4.6022,2636.3,2635.6,3.79419]
[1730254768346,3.79355,2636.1,2635.6,3.79419]
[1730254768556,3.79365,2636.0,2635.6,3.79419]
[1730254769064,3.79363,2636.0,2635.6,3.79419]
[1730254769650,3.79363,2636.0,2635.5,0.7523]
[1730254769841,3.79363,2636.0,2635.5,4.5466]
[1730254770831,3.79363,2636.0,2635.5,4.82573991]
[1730254771034,3.79363,2636.0,2635.5,4.5466]
[1730254771352,3.79363,2636.0,2635.5,4.8257548]
[1730254771654,3.79363,2636.0,2635.5,1.0314548]
[1730254771655,4.552336,2636.0,2635.5,1.0314548]
[1730254771815,3.79446,2635.5,2635.0,3.30794893]
[1730254772017,3.79446,2635.5,2635.0,5.15087941]
[1730254772668,7.58888,2635.5,2635.0,5.15087941]
[1730254772815,3.79442,2635.5,2635.0,5.15087941]
[1730254773159,0.06671917,2635.4,2635.0,6.3607463]
[1730254773521,0.06671917,2635.4,2635.1,3.7948]
[1730254773734,3.79415,2635.7,2635.2,3.7947]
[1730254773936,0.0644952,2635.3,2635.2,4.07411043]
[1730254774157,26.34,2639.9,2635.5,3.79426]
[1730254774158,3.79365,2636.0,2635.5,3.79426]
[1730254774460,0.06446671,2635.9,2635.6,4.253216]
[1730254774751,0.06446671,2635.9,2635.6,4.53262643]
[1730254774966,3.79349,2636.1,2635.6,8.32675643]
[1730254775265,3.79349,2636.1,2635.6,4.53262643]
[1730254775573,0.0644667,2636.0,2635.6,4.253216]
[1730254775858,0.0644667,2636.0,2635.7,0.41074402]
[1730254776060,0.0644667,2636.0,2635.6,4.253216]
[1730254776276,0.0644667,2636.0,2635.6,3.79407]
[1730254777036,0.0644667,2636.0,2635.5,1.50757345]
[1730254777238,3.79384,2635.9,2635.5,0.72674964]
[1730254777439,3.79394,2635.8,2635.5,0.72674964]
[1730254777637,3.85851809,2635.8,2635.5,0.72674964]
[1730254777840,3.85851809,2635.8,2635.5,0.27939994]
[1730254778231,3.85851809,2635.8,2635.4,0.7972]
[1730254778744,3.85851809,2635.8,2635.5,0.27987624]
[1730254781766,3.85851809,2635.8,2635.4,1.24500483]
[1730254783047,0.06457809,2635.8,2635.4,5.03943483]
[1730254783249,0.06457809,2635.8,2635.5,3.79428]
[1730254783561,3.79373,2636.0,2635.5,3.79428]
[1730254783762,0.06454442,2635.7,2635.5,3.79428]
[1730254784069,3.79373,2636.0,2635.5,3.79428]
[1730254784278,0.06454442,2635.6,2635.5,3.79428]
[1730254784433,3.79373,2636.0,2635.5,5.22368762]
[1730254784633,7.58749,2636.0,2635.5,5.22368762]
[1730254784936,0.06454701,2635.9,2635.6,3.79417]
[1730254785155,0.06454701,2635.9,2635.6,3.7941]
[1730254785346,3.79354,2636.1,2635.7,0.52235076]
[1730254785557,3.79354,2636.1,2635.6,7.58823]
[1730254785558,0.06455996,2635.8,2635.6,7.58823]
[1730254785756,3.79354,2636.1,2635.6,3.7941]
[1730254785959,0.06455996,2635.7,2635.6,3.7941]
[1730254786161,3.79354,2636.1,2635.6,3.7941]
[1730254786639,0.06457032,2636.0,2635.6,3.7941]
[1730254786839,0.06457032,2636.0,2635.6,5.18812809]
[1730254787070,0.06457032,2636.0,2635.6,8.52843543]
[1730254787272,0.06457032,2636.0,2635.7,0.8169]
[1730254787437,0.7828,2636.2,2635.8,3.79383]
[1730254787633,0.0645729,2635.9,2635.8,7.21001136]
[1730254787832,3.79306,2636.4,2635.9,3.79367]
[1730254788070,3.79306,2636.4,2635.8,9.18493599]
[1730254788235,0.0645729,2636.3,2636.0,3.79359]
[1730254788442,4.56361,2636.5,2636.0,3.79359]
[1730254788641,0.0645729,2636.2,2635.8,12.97875599]
[1730254788835,7.58628,2636.4,2635.8,12.97875599]
[1730254789040,0.0645936,2636.1,2635.9,3.79375]
[1730254789273,3.79313,2636.4,2635.9,3.79375]
[1730254789776,0.7707,2636.5,2636.0,3.79358]
[1730254789777,4.56361,2636.5,2636.0,3.79358]
[1730254790140,4.56361,2636.5,2636.1,0.28050066]
[1730254790638,0.0645936,2636.4,2636.1,0.28050066]
[1730254791481,3.8576436,2636.4,2636.1,0.28050066]
[1730254792184,3.8576436,2636.4,2636.2,0.28050066]
[1730254792841,3.8576436,2636.4,2636.1,0.8169]
[1730254793038,3.8576436,2636.4,2636.2,0.28050066]
[1730254793289,3.8576436,2636.4,2636.1,0.8169]
[1730254793577,3.8576436,2636.4,2636.1,1.09740066]
[1730254793950,3.8576436,2636.4,2636.1,0.8169]
[1730254794155,3.8576436,2636.4,2636.1,1.09740066]
[1730254794477,7.6507636,2636.4,2636.1,0.8169]
[1730254794702,4.69978996,2636.4,2636.1,1.09740066]
[1730254794876,4.69978996,2636.4,2636.1,0.8169]
[1730254795181,4.69978996,2636.4,2636.1,1.09740066]
[1730254795477,8.49290996,2636.4,2636.1,0.8169]
[1730254795680,4.69978996,2636.4,2636.1,0.8169]
[1730254796089,3.8576436,2636.4,2636.1,0.8169]
[1730254796274,7.6508236,2636.4,2636.1,0.8169]
[1730254796582,3.8576436,2636.4,2636.1,0.8169]
[1730254797195,3.8576436,2636.4,2636.1,1.09740066]
[1730254797499,3.8576436,2636.4,2636.1,0.8169]
[1730254798489,7.6507836,2636.4,2636.1,0.8169]
[1730254798912,3.8576436,2636.4,2636.1,1.09707289]
[1730254799075,3.8576436,2636.4,2636.1,0.8169]
[1730254799386,3.8576436,2636.4,2636.2,0.28017289]
[1730254799777,7.6507636,2636.4,2636.2,0.28017289]
[1730254800016,3.8576436,2636.4,2636.1,0.8169]
[1730254800304,7.6507936,2636.4,2636.2,0.28017289]
[1730254800620,3.8576436,2636.4,2636.2,0.28017289]
[1730254800910,3.8576436,2636.4,2636.2,0.28051804]
[1730254801213,3.8576436,2636.4,2636.1,0.8169]
[1730254801714,3.8576436,2636.4,2636.2,0.28057049]
[1730254801870,3.8576436,2636.4,2636.1,0.8169]
[1730254802076,3.8576436,2636.4,2636.3,0.28056954]
[1730254803105,0.0645936,2636.4,2636.3,0.28056954]
[1730254803910,0.0645936,2636.4,2636.2,0.28056954]
[1730254804117,0.0645936,2636.4,2636.2,0.2805298]
[1730254804286,0.0645936,2636.4,2636.3,0.2805298]
[1730254804491,0.0645936,2636.4,2636.2,1.77267325]
[1730254804691,0.0645936,2636.4,2636.3,0.2805298]
[1730254805227,3.8576436,2636.4,2636.2,0.28052534]
[1730254805507,3.8576436,2636.4,2636.1,2.30904345]
[1730254805508,0.0645936,2636.4,2636.3,0.28050327]
[1730254805679,0.0645936,2636.4,2636.2,0.28050327]
[1730254805878,0.0645936,2636.4,2636.3,0.28050327]
[1730254806114,3.8577036,2636.4,2636.2,0.28050327]
[1730254806815,0.0645936,2636.4,2636.2,0.28050327]
[1730254807317,0.0645936,2636.4,2636.3,6.41040208]
[1730254807494,3.79243,2636.9,2636.7,1.49214345]
[1730254807821,3.79247,2636.8,2636.7,1.49214345]
[1730254808316,3.79218,2637.0,2636.7,1.49214345]
[1730254808494,3.79218,2637.0,2636.7,1.77241542]
[1730254808688,3.79236,2636.9,2636.7,1.77241542]
[1730254808892,3.79236,2636.9,2636.7,1.49214345]
[1730254809102,4.57146,2637.1,2636.7,1.77241542]
[1730254809306,3.79206,2637.1,2636.9,1.49214345]
[1730254809677,3.79191,2637.2,2636.9,1.49214345]
[1730254810018,4.38540085,2637.2,2636.9,1.49214345]
[1730254810182,3.79208,2637.1,2636.9,1.49214345]
[1730254810383,4.38540085,2637.2,2636.9,1.49214345]
[1730254810613,3.79208,2637.1,2636.7,7.12474554]
[1730254811201,4.38539085,2637.2,2636.7,7.12474554]
[1730254811403,3.79204,2637.1,2636.7,7.12474554]
[1730254811592,3.79204,2637.1,2636.7,3.33216554]
[1730254811908,3.79247,2636.8,2636.7,0.279964]
[1730254812090,3.79247,2636.8,2636.4,0.28001413]
[1730254812415,3.79247,2636.8,2636.3,4.38087967]
[1730254812416,3.79248,2636.8,2636.3,4.38087967]
[1730254812618,3.79248,2636.8,2636.3,8.17397967]
[1730254813483,3.79248,2636.8,2636.3,8.62200229]
[1730254813884,3.79248,2636.8,2636.3,7.89396554]
[1730254814197,3.79248,2636.8,2636.4,0.27994084]
[1730254815123,0.06288321,2636.7,2636.4,3.79302]
[1730254815289,0.06288321,2636.7,2636.4,5.30548569]
[1730254815628,0.06288321,2636.6,2636.5,0.27991867]
[1730254815997,3.79219,2637.0,2636.5,4.07281867]
[1730254816185,0.06288321,2636.9,2636.6,3.79276]
[1730254816393,0.7509,2637.1,2636.6,4.07253867]
[1730254816589,0.06289615,2637.0,2636.9,3.33216554]
[1730254816816,6.6167454,2637.5,2636.9,7.12449554]
[1730254817001,0.06289098,2637.4,2637.0,3.79205]
[1730254817276,0.06289098,2637.4,2637.2,3.79181]
[1730254817530,0.06289098,2637.4,2637.1,0.7887]
[1730254817886,3.7914,2637.6,2637.1,0.7887]
[1730254818084,3.7914,2637.6,2637.1,4.58073]
[1730254818085,0.06293498,2637.3,2637.1,4.58073]
[1730254818285,0.7509,2637.7,2637.2,3.7919]
[1730254818522,0.7509,2637.7,2637.2,3.79181]
[1730254818993,0.7509,2637.7,2637.3,3.79175]
[1730254819194,3.7911,2637.8,2637.3,3.79175]
[1730254819729,3.79119,2637.7,2637.2,4.07146265]
[1730254820018,3.79119,2637.7,2637.2,5.35362647]
[1730254820221,0.7509,2637.9,2637.2,5.35362647]
[1730254820222,4.54193,2637.9,2637.3,3.79168]
[1730254820425,3.79104,2637.8,2637.2,8.40618936]
[1730254820628,3.79104,2637.8,2637.4,3.79161]
[1730254820929,7.58218,2637.8,2637.2,8.40608936]
[1730254821343,3.79104,2637.8,2637.2,8.40608936]
[1730254821506,3.79119,2637.7,2637.2,8.40608936]
[1730254822040,3.79119,2637.7,2637.2,5.07392382]
[1730254823325,3.79104,2637.8,2637.3,3.79173]
[1730254824001,3.79104,2637.8,2637.2,5.07405382]
[1730254824201,3.79104,2637.8,2637.2,5.14988322]
[1730254824633,3.79104,2637.8,2637.3,3.79175]
[1730254824816,3.79104,2637.8,2637.2,5.14988322]
[1730254824817,3.79119,2637.7,2637.2,5.07405382]
[1730254826449,3.79205,2637.1,2636.7,0.7887]
[1730254826615,3.79261,2636.7,2636.2,1.46377805]
[1730254826815,3.79249,2636.8,2636.2,1.46377805]
[1730254827010,3.79285,2636.6,2636.2,2.32271041]
[1730254827334,7.58573,2636.6,2636.2,2.32271041]
[1730254827537,3.79285,2636.6,2636.2,2.32271041]
[1730254827740,3.79285,2636.6,2636.2,1.46377805]
[1730254827924,3.79298,2636.5,2636.2,1.46377805]
[1730254828127,3.79285,2636.6,2636.2,1.46377805]
[1730254828437,3.79284,2636.6,2636.2,1.46377805]
[1730254828843,3.7929,2636.5,2636.2,1.46377805]
[1730254828999,3.7929,2636.5,2636.2,0.67507805]
[1730254830205,3.79271,2636.7,2636.2,0.67507805]
[1730254830439,0.7509,2636.9,2636.2,0.67507805]
[1730254830619,1.205197,2636.9,2636.2,0.67507805]
[1730254830814,1.205197,2636.9,2636.2,0.39579225]
[1730254830815,3.79247,2636.8,2636.2,0.39579225]
[1730254831027,3.79283,2636.6,2636.2,0.39579225]
[1730254832654,3.79299,2636.5,2636.2,0.39579225]
[1730254833010,3.79349,2636.1,2635.7,0.7914]
[1730254833205,3.90442528,2636.0,2635.7,0.7914]
[1730254834150,0.11066528,2636.0,2635.7,0.7914]
[1730254834745,3.90428528,2636.0,2635.7,0.7914]
[1730254837061,0.11066528,2636.0,2635.7,4.58545]
[1730254837269,3.79332,2636.3,2635.7,5.05158296]
[1730254837566,0.11053584,2635.9,2635.7,4.58545]
[1730254837872,0.11053584,2635.8,2635.7,4.58545]
[1730254838373,3.79339,2636.2,2635.7,4.58545]
[1730254838664,3.79339,2636.2,2635.7,0.7914]
[1730254838830,3.90409584,2636.1,2635.7,0.7914]
[1730254840270,0.11053584,2636.1,2635.7,4.58536]
[1730254840731,0.11053584,2636.1,2635.7,0.7914]
[1730254840932,0.11053584,2636.1,2635.8,3.86977588]
[1730254841247,3.79292,2636.5,2636.0,3.79362]
[1730254841441,3.7929,2636.5,2636.0,3.79362]
[1730254842137,3.79286,2636.6,2636.1,4.58486]
[1730254842529,7.58573,2636.6,2636.1,0.7914]
[1730254842852,3.79306,2636.4,2636.1,0.7914]
[1730254843231,7.58569,2636.6,2636.1,0.7914]
[1730254843564,3.79292,2636.5,2636.1,0.7914]
[1730254844970,3.79314,2636.4,2636.1,0.7914]
[1730254848274,0.11049444,2636.3,2636.1,0.7914]
[1730254850782,0.11049444,2636.3,2635.6,4.52183831]
[1730254850951,3.79357,2636.1,2635.7,0.7588]
[1730254851172,3.79357,2636.1,2635.7,5.70699628]
[1730254851369,0.11048927,2636.0,2635.7,0.87427751]
[1730254851559,0.11048927,2636.0,2635.7,4.94823342]
[1730254851893,0.11048927,2636.0,2635.7,0.87427751]
[1730254852055,0.11048927,2636.0,2635.7,4.94824727]
[1730254852379,0.11048927,2636.0,2635.7,4.66830751]
[1730254852689,4.59898,2636.3,2635.7,4.66830751]
[1730254852690,0.11048927,2635.9,2635.7,4.9482041]
[1730254853071,3.79336,2636.2,2635.7,4.9482041]
[1730254853271,3.79328,2636.3,2635.8,0.57828779]
[1730254853612,3.79334,2636.2,2635.8,0.57828779]
[1730254854593,3.79333,2636.2,2635.7,4.66823751]
[1730254854830,3.79348,2636.1,2635.7,3.79396]
[1730254854991,3.79336,2636.2,2635.7,7.58794]
[1730254855293,3.79326,2636.3,2635.8,0.7588]
[1730254855670,3.79317,2636.4,2635.8,0.7588]
[1730254855859,3.79334,2636.2,2635.8,0.7588]
[1730254856457,3.79334,2636.2,2635.7,3.79396]
[1730254856458,3.79351,2636.1,2635.6,1.03865616]
[1730254856765,3.79351,2636.1,2635.6,5.12056844]
[1730254857304,3.79351,2636.1,2635.7,3.79403]
[1730254857487,4.59904,2636.2,2635.7,4.07382616]
[1730254857688,3.7935,2636.1,2635.7,3.79397]
[1730254858071,3.7935,2636.1,2635.7,4.07383135]
[1730254858383,3.7935,2636.1,2635.6,5.12063844]
[1730254859077,3.7935,2636.1,2635.7,3.79403]
[1730254860070,4.56156,2636.4,2635.7,4.80095104]
[1730254860272,6.80193,2637.2,2635.9,0.8234]
[1730254860273,4.56128,2636.6,2635.9,0.8234]
[1730254860496,3.79287,2636.6,2636.2,0.8234]
[1730254861808,3.79276,2636.6,2636.2,0.8234]
[1730254862353,7.58564,2636.6,2636.2,0.8234]
[1730254862476,3.79276,2636.6,2636.2,0.8234]
[1730254863411,0.1105022,2636.5,2636.2,0.8234]
[1730254865399,0.1105022,2636.5,2636.2,1.664439]
[1730254866496,3.9034922,2636.5,2636.2,1.664439]
[1730254866686,3.9034922,2636.5,2636.2,0.8234]
[1730254869011,0.1105022,2636.5,2636.2,0.8234]
[1730254869216,3.79276,2636.6,2636.2,0.8234]
[1730254869591,0.1105022,2636.5,2636.2,0.8234]
[1730254870216,3.9034822,2636.5,2636.2,1.10339915]
[1730254870427,0.1105022,2636.5,2636.2,1.10339915]
[1730254871290,0.1105022,2636.5,2636.3,0.27999915]
[1730254872205,0.1105022,2636.5,2636.4,0.27999915]
[1730254873104,0.1105022,2636.5,2636.2,0.8234]
[1730254873432,0.1105022,2636.5,2636.3,0.72963854]
[1730254873660,0.1105022,2636.5,2636.4,0.28063021]
[1730254873808,0.1105022,2636.5,2636.4,0.72963854]
[1730254874145,0.1105022,2636.5,2636.4,0.28063021]
[1730254874442,0.1105022,2636.5,2636.4,0.72963854]
[1730254874649,0.1105022,2636.5,2636.4,0.28063021]
[1730254874942,0.1105022,2636.5,2636.4,0.72963854]
[1730254875144,0.1105022,2636.5,2636.4,0.28063021]
[1730254875444,0.1105022,2636.5,2636.4,0.72963854]
[1730254875745,0.1105022,2636.5,2636.4,0.28063021]
[1730254875947,0.1105022,2636.5,2636.4,0.72963854]
[1730254876239,0.1105022,2636.5,2636.4,0.28063021]
[1730254876621,0.1105022,2636.5,2636.4,0.72963854]
[1730254876835,0.1105022,2636.5,2636.4,0.28063021]
[1730254877236,0.1105022,2636.5,2636.4,0.72963854]
[1730254877424,3.79269,2636.7,2636.4,0.72963854]
[1730254877629,0.1105307,2636.6,2636.5,0.28063021]
[1730254878728,3.79233,2636.9,2636.5,0.84195712]
[1730254878932,0.10689812,2636.6,2636.5,0.56132691]
[1730254879132,3.79233,2636.9,2636.5,1.47147877]
[1730254879340,0.10691105,2636.6,2636.5,5.80717968]
[1730254879509,4.56079,2637.0,2636.5,5.80717968]
[1730254879510,8.35307,2637.0,2636.5,5.97528554]
[1730254879710,3.79239,2636.9,2636.6,0.44888171]
[1730254879955,3.8993554,2636.9,2636.7,0.72943277]
[1730254880115,3.8993554,2636.9,2636.8,0.28055106]
[1730254880315,3.8993554,2636.9,2636.8,0.72942342]
[1730254880541,3.8993554,2636.9,2636.5,0.8234]
[1730254880714,3.8993554,2636.9,2636.8,0.28054507]
[1730254883363,7.15541266,2636.9,2636.8,0.28054507]
[1730254884621,7.15541266,2636.9,2636.8,0.56117098]
[1730254884848,7.15541266,2636.9,2636.8,0.28054507]
[1730254885051,3.79276,2636.6,2636.5,0.44900146]
[1730254885220,3.8997461,2636.6,2636.5,0.72963514]
[1730254888063,3.8997461,2636.6,2636.5,0.72971132]
[1730254890183,0.1069861,2636.6,2636.5,0.72971132]
[1730254890486,3.79249,2636.8,2636.5,1.99563209]
[1730254890662,7.58505,2636.8,2636.6,0.72971132]
[1730254890862,3.79249,2636.8,2636.7,0.72971132]
[1730254891762,3.79249,2636.8,2636.7,0.2806582]
[1730254893174,3.8994813,2636.8,2636.7,0.2806582]
[1730254893554,3.8994813,2636.8,2636.7,0.72989628]
[1730254895140,3.8994813,2636.8,2636.5,0.7575]
[1730254895436,3.8994813,2636.8,2636.7,0.73021042]
[1730254895653,3.8994813,2636.8,2636.7,0.44936026]
[1730254897394,3.8994813,2636.8,2636.7,0.73021042]
[1730254897588,0.1069913,2636.8,2636.7,0.73021042]
[1730254897774,3.79234,2636.9,2636.7,0.73021042]
[1730254897981,0.10344562,2636.8,2636.7,0.73346032]
[1730254898151,0.10344562,2636.8,2636.7,1.46361721]
[1730254898348,0.10344562,2636.8,2636.7,2.02531754]
[1730254898554,0.10344562,2636.8,2636.7,1.46361721]
[1730254898757,0.10344562,2636.8,2636.7,0.73346032]
[1730254899066,0.10344562,2636.8,2636.7,2.0252526]
[1730254899267,0.10344562,2636.8,2636.7,2.47460584]
[1730254899583,0.10344562,2636.8,2636.7,3.31713408]
[1730254900390,3.7922,2637.0,2636.7,3.31713408]
[1730254900700,3.7922,2637.0,2636.8,0.84250656]
[1730254900894,3.7922,2637.0,2636.9,0.28083552]
[1730254901789,7.58206,2637.8,2636.9,2.10487638]
[1730254901999,0.59347743,2637.9,2637.5,0.7575]
[1730254902207,8.17546743,2637.9,2637.6,0.28083552]
[1730254902495,8.17546743,2637.9,2637.7,0.72924667]
[1730254902496,3.79111,2637.8,2637.7,0.72924667]
[1730254903284,3.79111,2637.8,2637.7,0.28047949]
[1730254903609,7.10337046,2637.8,2637.7,0.28047949]
[1730254903811,6.16105799,2637.8,2637.7,0.28047949]
[1730254904099,9.17105799,2637.8,2637.7,0.28047949]
[1730254904777,9.16105799,2637.8,2637.7,0.28047949]
[1730254905101,8.61105799,2637.8,2637.7,0.28047949]
[1730254905302,8.70779593,2637.8,2637.7,0.28047949]
[1730254905473,5.70779593,2637.8,2637.7,0.28047949]
[1730254906002,7.2001084,2637.8,2637.7,0.28047949]
[1730254907009,10.2001084,2637.8,2637.7,0.28047949]
[1730254907713,3.88784794,2637.8,2637.7,0.28047949]
[1730254907862,0.09673794,2637.8,2637.5,0.7753]
[1730254908067,3.88788794,2637.8,2637.5,0.7753]
[1730254908267,0.09673794,2637.8,2637.5,0.7753]
[1730254909178,0.09673794,2637.8,2637.5,5.28373247]
[1730254909374,0.09673794,2637.8,2637.7,0.7753]
[1730254911520,3.88776794,2637.8,2637.7,0.7753]
[1730254913700,0.09673794,2637.8,2637.7,0.7753]
[1730254914227,3.88776794,2637.8,2637.7,0.7753]
[1730254914380,3.79134,2637.6,2637.2,0.7753]
[1730254914582,0.09673794,2637.8,2637.5,9.05497494]
[1730254914776,3.916323,2638.6,2637.5,9.05497494]
[1730254914777,3.79031,2638.4,2637.8,4.56632]
[1730254915001,0.126363,2638.6,2638.0,0.7753]
[1730254915002,3.916343,2638.6,2638.0,0.7753]
[1730254915188,3.7906,2638.1,2637.5,0.7753]
[1730254915615,7.58132,2638.1,2637.6,1.49231247]
[1730254916013,3.7906,2638.1,2637.6,1.49231247]
[1730254916583,7.58134,2638.1,2637.6,1.49231247]
[1730254916984,3.7906,2638.1,2637.6,1.49231247]
[1730254917179,3.7906,2638.1,2637.7,0.60590525]
[1730254917818,7.5813,2638.1,2637.7,0.60590525]
[1730254918024,3.7906,2638.1,2637.7,0.60590525]
[1730254920396,0.8095,2638.1,2637.5,0.7753]
[1730254920613,3.79084,2638.0,2637.5,6.05898247]
[1730254920921,0.08767645,2637.9,2637.5,6.05898247]
[1730254921125,0.08767645,2637.9,2637.6,0.98505225]
[1730254921623,0.08767645,2637.9,2637.6,4.77633225]
[1730254921825,0.08767645,2637.9,2637.7,0.8245]
[1730254922216,3.79069,2638.1,2637.7,0.8245]
[1730254922452,0.08767645,2637.8,2637.7,0.8245]
[1730254922622,3.79069,2638.1,2637.7,1.53381047]
[1730254922932,3.79103,2637.8,2637.4,0.8245]
[1730254923144,4.60039,2637.9,2637.4,0.8245]
[1730254923287,3.79119,2637.7,2637.4,0.8245]
[1730254923489,1.49231247,2637.6,2637.1,0.55882732]
[1730254923833,3.79185,2637.3,2637.0,0.8245]
[1730254924013,7.58417,2637.1,2636.7,0.8245]
[1730254924216,0.08768162,2637.2,2636.7,0.8245]
[1730254924418,0.8095,2637.5,2636.8,0.23926583]
[1730254924419,3.79211,2637.1,2636.8,0.23926583]
[1730254924723,3.79185,2637.3,2636.8,0.23926583]
[1730254924911,0.08768162,2637.0,2636.8,1.7315783]
[1730254925118,3.79191,2637.2,2636.8,1.7315783]
[1730254925314,0.08768162,2636.9,2636.8,1.7315783]
[1730254925504,3.79191,2637.2,2636.8,1.7315783]
[1730254925708,3.79185,2637.3,2636.8,1.7315783]
[1730254926093,3.79191,2637.2,2636.8,1.7315783]
[1730254926315,0.08768162,2637.1,2636.8,0.23926583]
[1730254926504,3.87974162,2637.1,2636.7,0.8245]
[1730254927592,3.87974162,2637.1,2636.7,4.61711]
[1730254928033,3.87974162,2637.1,2636.7,0.8245]
[1730254929492,0.08768162,2637.1,2636.7,4.61711]
[1730254929692,3.79185,2637.3,2636.8,0.61852683]
[1730254930127,0.08768162,2637.2,2636.8,2.1108393]
[1730254930330,3.79168,2637.4,2636.8,2.1108393]
[1730254930503,3.79168,2637.4,2636.9,3.79231]
[1730254930706,3.79177,2637.3,2636.8,5.28478247]
[1730254930912,0.08735123,2637.2,2636.8,5.28478247]
[1730254931090,3.79177,2637.3,2636.8,5.28478247]
[1730254931530,0.08735123,2637.2,2636.8,5.28478247]
[1730254931733,0.08735123,2637.2,2636.8,6.27496472]
[1730254932032,3.79177,2637.3,2636.8,6.27496472]
[1730254932248,0.08736416,2637.1,2636.8,6.27496472]
[1730254932529,3.79177,2637.3,2636.8,6.27496472]
[1730254932715,0.08736416,2637.0,2636.8,6.27496472]
[1730254932919,3.79177,2637.3,2636.9,1.08920047]
[1730254933233,3.79177,2637.3,2636.8,5.28477247]
[1730254933410,0.08736416,2637.2,2636.8,5.28477247]
[1730254933610,3.79177,2637.3,2636.8,5.28477247]
[1730254933802,0.08736416,2637.1,2636.8,5.28477247]
[1730254934001,3.79177,2637.3,2636.8,5.28477247]
[1730254934302,3.79177,2637.3,2636.8,6.27495372]
[1730254934848,4.60107,2637.5,2636.8,0.99018125]
[1730254934849,0.08736416,2637.2,2636.8,0.99018125]
[1730254935142,0.08736416,2637.2,2636.9,0.27991846]
[1730254935143,3.79226,2637.0,2636.9,0.27991846]
[1730254935300,3.79235,2636.9,2636.6,0.27991846]
[1730254935640,3.79235,2636.9,2636.5,1.22007764]
[1730254935838,0.08736416,2636.8,2636.5,1.22007764]
[1730254936041,0.08736416,2636.8,2636.4,0.27991846]
[1730254936238,3.87986416,2636.8,2636.4,0.53959155]
[1730254936599,0.08736416,2636.8,2636.4,0.98754595]
[1730254936799,3.79264,2636.7,2636.4,0.27991846]
[1730254937006,3.87991359,2636.7,2636.4,0.27991846]
[1730254937211,0.08727359,2636.7,2636.4,0.27991846]
[1730254937513,3.7925,2636.8,2636.4,0.27991846]
[1730254937999,0.08723737,2636.7,2636.4,0.27991846]
[1730254938333,3.79273,2636.7,2636.3,1.77223093]
[1730254938640,0.08721926,2636.6,2636.3,2.83013422]
[1730254939203,0.08721926,2636.6,2636.4,0.27991846]
[1730254939836,0.08721926,2636.6,2636.3,2.83013422]
[1730254940036,0.08721926,2636.6,2636.3,0.27991846]
[1730254940037,3.87998926,2636.6,2636.3,0.27991846]
[1730254940599,3.79298,2636.5,2636.3,0.27991846]
[1730254940835,3.79298,2636.5,2636.1,0.27991846]
[1730254941022,0.08719597,2636.4,2636.2,0.27991846]
[1730254941211,0.08719597,2636.4,2636.3,0.27991846]
[1730254941540,0.08719597,2636.4,2636.1,0.27991846]
[1730254941739,0.08719597,2636.4,2636.2,0.27991846]
[1730254942033,0.08719597,2636.4,2636.0,6.55830687]
[1730254942034,0.08719597,2636.4,2636.3,0.27991846]
[1730254942238,0.08719597,2636.4,2636.2,3.79328]
[1730254942459,3.79277,2636.6,2636.3,0.27991846]
[1730254943338,0.8095,2636.7,2636.3,0.27991846]
[1730254943545,4.60213,2636.7,2636.3,0.27991846]
[1730254943718,4.60213,2636.7,2636.3,0.28041704]
[1730254944038,4.60213,2636.7,2636.3,0.28041169]
[1730254944200,0.8095,2636.7,2636.3,5.07865642]
[1730254944707,3.79305,2636.4,2636.3,0.28041169]
[1730254944903,3.79305,2636.4,2636.0,0.28041169]
[1730254944904,2.30181247,2636.4,2636.0,0.28041169]
[1730254945097,3.79405,2635.7,2635.6,0.37388225]
[1730254945346,4.60355,2635.7,2635.6,0.37388225]
[1730254946349,9.09586247,2635.7,2635.6,0.37388225]
[1730254948201,3.79472,2635.3,2634.8,0.8245]
[1730254948450,3.79477,2635.2,2634.8,0.8245]
[1730254948602,3.79514,2635.0,2634.8,0.51808634]
[1730254948844,3.79514,2635.0,2634.7,0.56082338]
[1730254948845,4.60485,2634.8,2634.7,0.56082338]
[1730254949264,3.79555,2634.7,2634.5,0.44879556]
[1730254949464,3.79564,2634.6,2634.5,0.44879556]
[1730254949665,4.635689,2634.6,2634.5,0.44879556]
[1730254950242,3.79599,2634.4,2633.8,4.59891]